bitfinex/quotes_BTCUSD_20240915
["timestamp","ask_amount","ask_price","bid_price","bid_amount"]
[1726362755274,0.03086781,60255.0,60254.0,1.18569956]
[1726362755491,0.03086781,60255.0,60254.0,1.08628766]
[1726362756399,0.03086781,60255.0,60254.0,1.16080564]
[1726362757521,0.03086781,60255.0,60254.0,0.85680272]
[1726362758363,0.03086781,60255.0,60254.0,0.78228474]
[1726362759452,0.03086781,60255.0,60254.0,0.76828474]
[1726362759689,0.03086781,60255.0,60254.0,0.78228474]
[1726362760136,0.03086781,60255.0,60254.0,0.76828474]
[1726362760348,0.03086781,60255.0,60254.0,0.8179358]
[1726362760568,0.03086781,60255.0,60254.0,0.8319358]
[1726362760786,0.0048209,60255.0,60254.0,0.8319358]
[1726362762535,0.0048209,60255.0,60254.0,0.70548474]
[1726362767169,0.03086782,60255.0,60254.0,0.70548474]
[1726362767410,0.03086782,60255.0,60254.0,0.43994274]
[1726362768535,0.03086782,60255.0,60254.0,0.03962974]
[1726362768536,0.12836782,60255.0,60254.0,0.03962974]
[1726362768715,0.33643682,60255.0,60254.0,0.03962974]
[1726362768967,0.60197482,60255.0,60254.0,0.03962974]
[1726362771038,0.86751282,60255.0,60254.0,0.03962974]
[1726362771221,0.60197482,60255.0,60254.0,0.03962974]
[1726362772743,0.5759279,60255.0,60254.0,0.03962974]
[1726362776000,0.60197598,60255.0,60254.0,0.03962974]
[1726362782799,0.5759279,60255.0,60254.0,0.03962974]
[1726362785946,0.60197598,60255.0,60254.0,0.03962974]
[1726362788701,0.86751398,60255.0,60254.0,0.03962974]
[1726362790517,0.99369428,60255.0,60254.0,0.03962974]
[1726362790751,1.25923228,60255.0,60254.0,0.03962974]
[1726362791472,1.25923228,60255.0,60254.0,0.02562974]
[1726362791700,1.25923228,60255.0,60254.0,0.02062974]
[1726362791920,1.25923228,60255.0,60254.0,0.009]
[1726362792102,0.663855,60254.0,60253.0,0.6]
[1726362792320,0.88204763,60254.0,60253.0,0.6]
[1726362794164,0.88204763,60254.0,60253.0,0.605]
[1726362794375,1.00575512,60254.0,60253.0,0.605]
[1726362794583,1.08855512,60254.0,60253.0,0.61460614]
[1726362794813,1.35409712,60254.0,60253.0,0.61460614]
[1726362795018,1.35409712,60254.0,60253.0,0.61660614]
[1726362795229,1.35409712,60254.0,60253.0,0.61960614]
[1726362795438,1.35409712,60254.0,60253.0,0.61160614]
[1726362795859,1.35409712,60254.0,60253.0,0.61260614]
[1726362796079,1.35509712,60254.0,60253.0,0.61260614]
[1726362796288,1.38114675,60254.0,60253.0,0.61260614]
[1726362797580,1.38114675,60254.0,60253.0,0.61160614]
[1726362797810,1.38114675,60254.0,60253.0,0.61560614]
[1726362798273,1.38114675,60254.0,60253.0,0.61260614]
[1726362798513,1.38014675,60254.0,60253.0,0.61160614]
[1726362798748,1.38014675,60254.0,60253.0,0.61560614]
[1726362798981,1.38014675,60254.0,60253.0,0.61660614]
[1726362799832,1.25643926,60254.0,60253.0,0.61660614]
[1726362802746,1.23038963,60254.0,60253.0,0.61660614]
[1726362804684,0.96484763,60254.0,60253.0,0.61660614]
[1726362805564,0.96484763,60254.0,60253.0,0.61160614]
[1726362805827,0.99089711,60254.0,60253.0,0.61160614]
[1726362806031,0.99089711,60254.0,60253.0,0.61660614]
[1726362806242,0.99089711,60254.0,60253.0,0.61560614]
[1726362807352,0.99089711,60254.0,60253.0,0.61160614]
[1726362807571,0.99089711,60254.0,60253.0,0.61460614]
[1726362808481,0.99089711,60254.0,60253.0,0.61960614]
[1726362810074,0.96484763,60254.0,60253.0,0.61960614]
[1726362810878,0.96567063,60254.0,60253.0,0.61960614]
[1726362813014,0.99172011,60254.0,60253.0,0.61960614]
[1726362813242,0.96567063,60254.0,60253.0,0.61960614]
[1726362813650,0.99172011,60254.0,60253.0,0.61960614]
[1726362815028,0.87232748,60254.0,60253.0,0.61960614]
[1726362815249,0.99172011,60254.0,60253.0,0.61960614]
[1726362818695,0.02687248,60254.0,60253.0,0.61960614]
[1726362818935,0.02687248,60254.0,60253.0,0.71190614]
[1726362819579,0.02687248,60254.0,60253.0,0.70690614]
[1726362819999,0.02687248,60254.0,60253.0,0.71890614]
[1726362820428,0.02687248,60254.0,60253.0,0.61460614]
[1726362820641,0.15964348,60254.0,60253.0,0.61460614]
[1726362820876,0.15964348,60254.0,60253.0,0.61160614]
[1726362821316,0.15964348,60254.0,60253.0,0.63960614]
[1726362822010,0.15964348,60254.0,60253.0,0.62560614]
[1726362822424,0.15964348,60254.0,60253.0,0.63660614]
[1726362822634,0.133594,60254.0,60253.0,0.63660614]
[1726362823054,0.133594,60254.0,60253.0,0.62260614]
[1726362823415,0.133594,60254.0,60253.0,0.63560614]
[1726362823842,0.133594,60254.0,60253.0,0.62460614]
[1726362824042,0.133594,60254.0,60253.0,0.62560614]
[1726362824787,0.133594,60254.0,60253.0,0.62260614]
[1726362824970,0.133594,60254.0,60253.0,0.61160614]
[1726362825162,0.133594,60254.0,60253.0,0.63860614]
[1726362826095,0.15964322,60254.0,60253.0,0.63860614]
[1726362826356,0.399136,60254.0,60253.0,0.62560614]
[1726362826616,0.399136,60254.0,60253.0,0.63960614]
[1726362827078,0.399136,60254.0,60253.0,0.61160614]
[1726362827322,0.399136,60254.0,60253.0,0.63560614]
[1726362827591,0.399136,60254.0,60253.0,0.62460614]
[1726362827873,0.399136,60254.0,60253.0,0.61960614]
[1726362828123,0.399136,60254.0,60253.0,0.62160614]
[1726362828636,0.399136,60254.0,60253.0,0.63260614]
[1726362829105,0.42518526,60254.0,60253.0,0.63260614]
[1726362830043,0.42518526,60254.0,60253.0,0.62260614]
[1726362830267,0.42518526,60254.0,60253.0,0.61160614]
[1726362830529,0.42518526,60254.0,60253.0,0.63260614]
[1726362830734,0.42518526,60254.0,60253.0,0.62460614]
[1726362831150,0.42518526,60254.0,60253.0,0.63560614]
[1726362831825,0.399136,60254.0,60253.0,0.63560614]
[1726362835125,0.42518526,60254.0,60253.0,0.63560614]
[1726362835562,0.69072726,60254.0,60253.0,0.63560614]
[1726362840072,0.42518526,60254.0,60253.0,0.63560614]
[1726362842598,0.399136,60254.0,60253.0,0.63560614]
[1726362843023,0.399136,60254.0,60253.0,0.63760614]
[1726362843703,0.000823,60254.0,60253.0,0.77037914]
[1726362843915,0.000823,60254.0,60253.0,1.13472514]
[1726362847825,0.000823,60254.0,60253.0,0.77037914]
[1726362851757,0.000823,60254.0,60253.0,1.03592514]
[1726362853043,0.000823,60254.0,60253.0,0.77037914]
[1726362853250,0.000823,60254.0,60253.0,1.03592514]
[1726362853689,0.000823,60254.0,60253.0,1.08567917]
[1726362853893,0.000823,60254.0,60253.0,1.03592514]
[1726362854374,0.000823,60254.0,60253.0,2.34983581]
[1726362854628,0.000822,60259.0,60258.0,0.7221]
[1726362854873,0.000822,60259.0,60258.0,1.61285923]
[1726362855105,0.000822,60259.0,60258.0,1.59851779]
[1726362855563,0.000822,60259.0,60258.0,1.47912516]
[1726362855785,0.000822,60259.0,60258.0,1.61251779]
[1726362856487,0.000822,60259.0,60258.0,1.75066276]
[1726362856949,0.000822,60259.0,60258.0,1.61727013]
[1726362857192,0.000822,60259.0,60258.0,1.54512269]
[1726362857416,0.000822,60259.0,60258.0,1.44583516]
[1726362857635,0.000822,60259.0,60258.0,1.25478078]
[1726362857843,0.000822,60259.0,60258.0,1.25218058]
[1726362858046,0.000822,60259.0,60258.0,0.87507993]
[1726362858254,0.000822,60259.0,60258.0,1.25206892]
[1726362858460,0.000822,60259.0,60258.0,0.95271931]
[1726362858878,0.000822,60259.0,60258.0,0.41185593]
[1726362859086,0.000822,60259.0,60258.0,0.42585593]
[1726362859283,0.000822,60259.0,60258.0,0.43985593]
[1726362860155,0.000822,60259.0,60258.0,0.17433193]
[1726362860589,0.000822,60259.0,60258.0,0.43985593]
[1726362861304,0.000822,60259.0,60258.0,0.17433193]
[1726362862968,0.077522,60259.0,60258.0,0.17233193]
[1726362864139,0.077522,60259.0,60258.0,0.15833193]
[1726362864373,0.077522,60259.0,60258.0,0.17233193]
[1726362864612,0.077522,60259.0,60258.0,0.15833193]
[1726362864842,0.077522,60259.0,60258.0,0.14433193]
[1726362865081,0.077522,60259.0,60258.0,0.15833193]
[1726362865317,0.077522,60259.0,60258.0,0.03956993]
[1726362865780,0.077522,60259.0,60258.0,0.02556993]
[1726362866014,0.077522,60259.0,60258.0,0.02756993]
[1726362866237,0.077522,60259.0,60258.0,0.04156993]
[1726362866706,0.077522,60259.0,60258.0,0.17433193]
[1726362866943,0.000822,60259.0,60258.0,0.17433193]
[1726362867417,0.000822,60259.0,60258.0,0.04156993]
[1726362869124,0.000822,60259.0,60258.0,0.03956993]
[1726362869606,0.000822,60259.0,60258.0,0.70537993]
[1726362885293,0.02686579,60259.0,60258.0,0.70537993]
[1726362887536,0.02686579,60259.0,60258.0,0.75504449]
[1726362889338,0.02686579,60259.0,60258.0,0.75506877]
[1726362890472,0.02686579,60259.0,60258.0,0.70537993]
[1726362890977,0.000822,60259.0,60258.0,0.70537993]
[1726362892971,0.000822,60259.0,60258.0,0.77991319]
[1726362893203,0.000822,60259.0,60258.0,0.70537993]
[1726362893441,0.000822,60259.0,60258.0,0.77991319]
[1726362894113,0.000822,60259.0,60258.0,0.70537993]
[1726362894366,0.000822,60259.0,60258.0,1.08327235]
[1726362896469,0.000822,60259.0,60258.0,1.00870687]
[1726362897410,0.02686558,60259.0,60258.0,1.10812751]
[1726362898441,0.02686558,60259.0,60258.0,1.00870687]
[1726362899069,0.02686558,60259.0,60258.0,1.00890117]
[1726362899286,0.02686558,60259.0,60258.0,1.13327628]
[1726362900348,0.02686558,60259.0,60258.0,1.00890117]
[1726362900785,0.02686558,60259.0,60258.0,0.86780029]
[1726362901269,0.02686558,60259.0,60258.0,1.13332429]
[1726362902608,0.000822,60259.0,60258.0,1.13332429]
[1726362903255,0.000822,60259.0,60258.0,1.00890117]
[1726362903458,0.000822,60259.0,60258.0,1.13337587]
[1726362903882,0.000822,60259.0,60258.0,1.00890117]
[1726362905845,0.02686574,60259.0,60258.0,1.00890117]
[1726362906303,0.02686574,60259.0,60258.0,1.00896173]
[1726362912064,0.02686574,60259.0,60258.0,0.74343773]
[1726362912294,0.12406574,60259.0,60258.0,0.74352357]
[1726362912722,0.098022,60259.0,60258.0,0.74352357]
[1726362915714,0.098022,60259.0,60258.0,0.47599957]
[1726362915930,0.20176601,60259.0,60258.0,0.47599957]
[1726362916417,0.20176601,60259.0,60258.0,0.74152357]
[1726362917055,0.20176601,60259.0,60258.0,0.74143518]
[1726362918175,0.20176601,60259.0,60258.0,0.47591118]
[1726362918642,0.20176601,60259.0,60258.0,0.34514918]
[1726362918878,0.20176601,60259.0,60258.0,0.34314918]
[1726362919118,0.20176601,60259.0,60258.0,0.74143518]
[1726362919820,0.20176601,60259.0,60258.0,0.47591118]
[1726362920255,0.20176601,60259.0,60258.0,0.34314918]
[1726362920258,0.33452601,60259.0,60258.0,0.46765291]
[1726362920495,0.20176601,60259.0,60258.0,0.44275377]
[1726362920731,0.20176601,60259.0,60258.0,0.44475377]
[1726362920981,0.20176601,60259.0,60258.0,0.44475328]
[1726362921990,0.175722,60259.0,60258.0,0.44475328]
[1726362923673,0.308482,60259.0,60258.0,0.44275328]
[1726362925156,0.3345263,60259.0,60258.0,0.44275328]
[1726362926326,0.3345263,60259.0,60258.0,0.34314918]
[1726362926635,0.67197186,60259.0,60258.0,0.34314918]
[1726362926881,0.67197186,60259.0,60258.0,0.03956993]
[1726362928540,0.6000463,60259.0,60258.0,0.03956993]
[1726362929784,0.2017663,60259.0,60258.0,0.03956993]
[1726362930022,0.3345263,60259.0,60258.0,0.04156993]
[1726362932637,0.308482,60259.0,60258.0,0.04156993]
[1726362933353,0.308482,60259.0,60258.0,0.03956993]
[1726362935984,0.33452781,60259.0,60258.0,0.03956993]
[1726362939019,0.33452781,60259.0,60258.0,0.04156993]
[1726362940921,0.308482,60259.0,60258.0,0.04156993]
[1726362941593,0.175722,60259.0,60258.0,0.04156993]
[1726362942724,0.175722,60259.0,60258.0,0.03956993]
[1726362942949,0.175722,60259.0,60258.0,0.04156993]
[1726362943431,0.308482,60259.0,60258.0,0.04156993]
[1726362943656,0.308482,60259.0,60258.0,0.03956993]
[1726362943884,0.33452802,60259.0,60258.0,0.03956993]
[1726362946967,0.33452802,60259.0,60258.0,0.03896947]
[1726362947194,0.33452802,60259.0,60258.0,0.0417458]
[1726362950005,0.40645395,60259.0,60258.0,0.0417458]
[1726362950707,0.20176802,60259.0,60258.0,0.0417458]
[1726362951235,0.175722,60259.0,60258.0,0.0417458]
[1726362952390,0.308482,60259.0,60258.0,0.0417458]
[1726362953507,0.175722,60259.0,60258.0,0.0437458]
[1726362953763,0.000822,60259.0,60258.0,0.0437458]
[1726362954000,0.000822,60259.0,60258.0,0.1765078]
[1726362954214,0.02686774,60259.0,60258.0,0.1765078]
[1726362956692,0.02686774,60259.0,60258.0,0.4420318]
[1726362956936,0.02686774,60259.0,60258.0,0.7075558]
[1726362957169,0.02686774,60259.0,60258.0,0.75728684]
[1726362958100,0.02686774,60259.0,60258.0,0.7075558]
[1726362958323,0.02686774,60259.0,60258.0,1.00726766]
[1726362958985,0.02686774,60259.0,60258.0,1.00891366]
[1726362959462,0.02686774,60259.0,60258.0,1.08349971]
[1726362959698,0.02686774,60259.0,60258.0,1.08349989]
[1726362959926,0.02686774,60259.0,60258.0,1.08349975]
[1726362960148,0.02686774,60259.0,60258.0,1.00891366]
[1726362961774,0.02686774,60259.0,60258.0,1.08350233]
[1726362962435,0.02686774,60259.0,60258.0,1.00891366]
[1726362962702,0.000822,60259.0,60258.0,1.08350445]
[1726362964340,0.000822,60259.0,60258.0,0.78379259]
[1726362964566,0.000822,60259.0,60258.0,0.7092018]
[1726362965956,0.02686744,60259.0,60258.0,0.7092018]
[1726362970099,0.000822,60259.0,60258.0,0.7092018]
[1726362973144,0.000822,60259.0,60258.0,0.75892513]
[1726362973355,0.02686551,60259.0,60258.0,0.75892513]
[1726362973576,0.000822,60259.0,60258.0,0.75892513]
[1726362975941,0.000822,60259.0,60258.0,0.7092018]
[1726362976440,0.02686561,60259.0,60258.0,0.7092018]
[1726362977178,0.132739,60269.0,60263.0,0.13275]
[1726362977642,0.132739,60269.0,60265.0,0.002]
[1726362978595,0.132239,60269.0,60264.0,0.002]
[1726362979073,0.132239,60269.0,60265.0,0.01374861]
[1726362979314,0.132239,60269.0,60265.0,0.02274861]
[1726362979548,0.132239,60269.0,60265.0,0.009]
[1726362979789,0.132239,60269.0,60266.0,0.01374861]
[1726362980017,0.092,60268.0,60266.0,0.01374861]
[1726362982642,0.092,60268.0,60266.0,0.02374861]
[1726362983377,0.092,60268.0,60266.0,0.03274861]
[1726362984866,0.092,60268.0,60267.0,0.002]
[1726362985603,0.092,60268.0,60267.0,0.01574861]
[1726362986119,0.11804292,60268.0,60267.0,0.02574861]
[1726362986329,0.11804292,60268.0,60267.0,0.03474861]
[1726362989046,0.092,60268.0,60267.0,0.03474861]
[1726362989514,0.092,60268.0,60267.0,0.03274861]
[1726362991963,0.11804296,60268.0,60267.0,0.03274861]
[1726362993130,0.092,60268.0,60267.0,0.03274861]
[1726362993610,0.092,60268.0,60267.0,0.03474861]
[1726362994835,0.092,60268.0,60267.0,0.03639461]
[1726362996243,0.11804291,60268.0,60267.0,0.03639461]
[1726362997192,0.11804291,60268.0,60267.0,0.16913661]
[1726362997445,0.02604291,60268.0,60267.0,0.16913661]
[1726362999534,0.02604291,60268.0,60267.0,0.16713661]
[1726363000717,0.02604291,60268.0,60267.0,0.43462161]
[1726363002328,0.000823,60269.0,60268.0,0.13474]
[1726363002831,0.000823,60269.0,60268.0,0.14848843]
[1726363003724,0.000823,60269.0,60268.0,0.15748843]
[1726363004006,0.000823,60269.0,60268.0,0.16548843]
[1726363004228,0.000823,60269.0,60268.0,0.02574843]
[1726363004446,0.000823,60269.0,60268.0,0.16298843]
[1726363005589,0.02686559,60269.0,60268.0,0.16298843]
[1726363013179,0.02686559,60269.0,60268.0,0.03024843]
[1726363017177,0.02686559,60269.0,60268.0,0.16298843]
[1726363018559,0.02686559,60269.0,60268.0,0.16498843]
[1726363020242,0.02686559,60269.0,60268.0,0.16663443]
[1726363020484,0.02686559,60269.0,60268.0,0.16463443]
[1726363021423,0.02686559,60269.0,60268.0,0.03189443]
[1726363022101,0.000823,60269.0,60268.0,0.03189443]
[1726363023490,0.000823,60269.0,60268.0,0.16463443]
[1726363024542,0.000823,60269.0,60268.0,0.03189443]
[1726363024543,0.133561,60269.0,60268.0,0.03189443]
[1726363024656,0.311661,60269.0,60268.0,0.03189443]
[1726363024937,0.577137,60269.0,60268.0,0.03189443]
[1726363025430,0.311661,60269.0,60268.0,0.018646]
[1726363025664,0.577137,60269.0,60268.0,0.018646]
[1726363026419,0.577137,60269.0,60266.0,1.13690967]
[1726363026420,0.448488,60267.0,60266.0,1.13690967]
[1726363026662,0.448488,60267.0,60265.0,0.16945944]
[1726363026663,0.931233,60266.0,60265.0,0.16945944]
[1726363026888,1.36114821,60266.0,60265.0,0.14423954]
[1726363027152,1.50435874,60266.0,60265.0,0.14423954]
[1726363027442,2.37919748,60266.0,60265.0,0.14423954]
[1726363027631,2.42599748,60266.0,60265.0,0.14423954]
[1726363027877,2.52565006,60266.0,60265.0,0.14423954]
[1726363028105,2.52565006,60266.0,60265.0,0.12466014]
[1726363028106,2.71448648,60266.0,60265.0,0.12466014]
[1726363028594,2.8389619,60266.0,60265.0,0.12466014]
[1726363029279,4.50065155,60266.0,60265.0,0.12566014]
[1726363029562,4.37617648,60266.0,60265.0,0.12566014]
[1726363029813,2.63146721,60266.0,60265.0,0.12566014]
[1726363030073,1.91125948,60266.0,60265.0,0.12666014]
[1726363030296,1.7323352,60266.0,60265.0,0.12566014]
[1726363030514,1.7463352,60266.0,60265.0,0.13864318]
[1726363030737,1.7233352,60266.0,60265.0,0.13764318]
[1726363030957,1.7373352,60266.0,60265.0,0.13864318]
[1726363031176,1.7373352,60266.0,60265.0,0.13764318]
[1726363031416,1.7093352,60266.0,60265.0,0.13664318]
[1726363031635,1.7183352,60266.0,60265.0,0.13764318]
[1726363032149,1.7093352,60266.0,60265.0,0.13828918]
[1726363032395,1.7173352,60266.0,60265.0,0.13928918]
[1726363032633,1.7173352,60266.0,60265.0,0.14028918]
[1726363032634,1.60811493,60266.0,60265.0,0.14028918]
[1726363032873,1.7273352,60266.0,60265.0,0.14028918]
[1726363033530,1.9730294,60266.0,60265.0,0.14028918]
[1726363033777,1.9233312,60266.0,60265.0,0.14028918]
[1726363034454,1.97302162,60266.0,60265.0,0.14028918]
[1726363034951,1.9233312,60266.0,60265.0,0.14028918]
[1726363035400,1.97301029,60266.0,60265.0,0.14028918]
[1726363036573,1.9233312,60266.0,60265.0,0.14028918]
[1726363038163,1.6805352,60266.0,60265.0,0.14028918]
[1726363040017,1.8032312,60266.0,60265.0,0.14028918]
[1726363040495,1.6805352,60266.0,60265.0,0.14028918]
[1726363040949,1.077211,60266.0,60265.0,0.14028918]
[1726363041397,1.10325994,60266.0,60265.0,0.14028918]
[1726363042074,1.08525994,60266.0,60265.0,0.13828918]
[1726363042293,1.09425994,60266.0,60265.0,0.13928918]
[1726363042583,1.22402819,60266.0,60265.0,0.14028918]
[1726363042828,1.07125994,60266.0,60265.0,0.14028918]
[1726363043078,0.70577094,60266.0,60265.0,0.14028918]
[1726363043305,0.17479294,60266.0,60265.0,0.23778918]
[1726363043554,0.49579096,60266.0,60265.0,0.23578918]
[1726363043778,0.76127996,60266.0,60265.0,0.23578918]
[1726363043996,0.77110296,60266.0,60265.0,0.23678918]
[1726363044231,0.74505402,60266.0,60265.0,0.23678918]
[1726363044448,0.77110086,60266.0,60265.0,0.23678918]
[1726363044887,0.77810086,60266.0,60265.0,0.23778918]
[1726363045355,0.77110086,60266.0,60265.0,0.23678918]
[1726363045568,0.77110086,60266.0,60265.0,0.23778918]
[1726363046173,0.76210086,60266.0,60265.0,0.23678918]
[1726363046705,0.76310086,60266.0,60265.0,0.24278918]
[1726363046932,0.76210086,60266.0,60265.0,0.23678918]
[1726363048058,0.76210086,60266.0,60265.0,0.23578918]
[1726363048498,0.76210086,60266.0,60265.0,0.23678918]
[1726363052182,0.76210086,60266.0,60265.0,0.23578918]
[1726363052646,0.76210086,60266.0,60265.0,0.23678918]
[1726363052876,0.76210086,60266.0,60265.0,0.23578918]
[1726363054504,0.76210086,60266.0,60265.0,0.23678918]
[1726363056450,0.76210086,60266.0,60265.0,0.13928918]
[1726363056451,1.14681013,60266.0,60265.0,0.13928918]
[1726363056691,1.22076329,60266.0,60265.0,0.13928918]
[1726363056919,1.10154302,60266.0,60265.0,0.13928918]
[1726363057357,1.10154302,60266.0,60265.0,0.13828918]
[1726363057613,1.10154302,60266.0,60265.0,0.11828918]
[1726363058068,1.10454302,60266.0,60265.0,0.11828918]
[1726363058271,1.10954302,60266.0,60265.0,0.11928918]
[1726363058491,1.10654302,60266.0,60265.0,0.11928918]
[1726363058914,1.11054302,60266.0,60265.0,0.11928918]
[1726363059773,1.13659047,60266.0,60265.0,0.11928918]
[1726363059983,1.06508145,60266.0,60265.0,0.11928918]
[1726363068139,0.79959245,60266.0,60265.0,0.29928918]
[1726363068666,0.773545,60266.0,60265.0,0.29928918]
[1726363069109,0.508056,60266.0,60265.0,0.29928918]
[1726363069349,0.408056,60266.0,60265.0,0.29928918]
[1726363070253,0.404056,60266.0,60265.0,0.29928918]
[1726363070482,0.399056,60266.0,60265.0,0.29828918]
[1726363070934,0.399056,60266.0,60265.0,0.30328918]
[1726363071153,0.403056,60266.0,60265.0,0.30328918]
[1726363071367,0.42910255,60266.0,60265.0,0.30328918]
[1726363071570,0.42510255,60266.0,60265.0,0.30328918]
[1726363071979,0.42510255,60266.0,60265.0,0.30828918]
[1726363072624,0.399056,60266.0,60265.0,0.30828918]
[1726363075120,0.399056,60266.0,60265.0,0.30328918]
[1726363075774,0.42510288,60266.0,60265.0,0.30328918]
[1726363076515,0.42510288,60266.0,60265.0,0.30828918]
[1726363076764,0.42510288,60266.0,60265.0,0.30328918]
[1726363077223,0.42510288,60266.0,60265.0,0.30828918]
[1726363077479,0.42510288,60266.0,60265.0,0.30328918]
[1726363077689,0.42510288,60266.0,60265.0,0.30828918]
[1726363080786,0.15961388,60266.0,60265.0,0.30828918]
[1726363081002,0.42510288,60266.0,60265.0,0.30828918]
[1726363082914,0.69059188,60266.0,60265.0,0.30828918]
[1726363084312,0.69059188,60266.0,60265.0,0.30328918]
[1726363084553,0.69059188,60266.0,60265.0,0.30228918]
[1726363084814,0.69059188,60266.0,60265.0,0.30628918]
[1726363087447,0.42510288,60266.0,60265.0,0.30628918]
[1726363088445,0.47493159,60266.0,60265.0,0.30628918]
[1726363089781,0.47494082,60266.0,60265.0,0.30628918]
[1726363090007,0.47494082,60266.0,60265.0,0.30228918]
[1726363090229,0.47494082,60266.0,60265.0,0.29828918]
[1726363090476,0.47494082,60266.0,60265.0,0.30228918]
[1726363090670,0.42510288,60266.0,60265.0,0.30628918]
[1726363092252,0.42510288,60266.0,60265.0,0.46903618]
[1726363092253,0.02686988,60266.0,60265.0,0.46903618]
[1726363092513,0.000823,60266.0,60265.0,0.73453018]
[1726363092734,0.000823,60266.0,60265.0,1.14224445]
[1726363092968,0.000823,60266.0,60265.0,1.40973845]
[1726363093193,0.000823,60266.0,60265.0,1.40573845]
[1726363093414,0.001823,60266.0,60265.0,1.41073845]
[1726363093644,0.002823,60266.0,60265.0,1.41873845]
[1726363093870,0.002823,60266.0,60265.0,1.41073845]
[1726363093871,0.001823,60266.0,60265.0,1.41073845]
[1726363094343,0.002823,60266.0,60265.0,1.42173845]
[1726363095469,0.001823,60266.0,60265.0,1.41273845]
[1726363095944,0.001823,60266.0,60265.0,1.42673845]
[1726363096183,0.000823,60274.0,60273.0,0.032]
[1726363096409,0.000823,60274.0,60273.0,1.11676527]
[1726363096636,0.000823,60274.0,60273.0,1.39411426]
[1726363096911,0.19900578,60281.0,60273.0,1.42739426]
[1726363097156,0.08593178,60281.0,60280.0,0.96979027]
[1726363097365,0.000823,60286.0,60280.0,0.96979027]
[1726363097366,0.000823,60286.0,60285.0,0.297405]
[1726363097603,0.000823,60286.0,60285.0,0.79060727]
[1726363097850,0.02685236,60286.0,60285.0,1.06782383]
[1726363099062,0.02685236,60286.0,60285.0,1.10581989]
[1726363100239,0.02685236,60286.0,60285.0,1.11981989]
[1726363100762,0.02685236,60286.0,60285.0,1.13381989]
[1726363100986,0.02685236,60286.0,60285.0,1.11981989]
[1726363101411,0.02685236,60286.0,60285.0,1.13381989]
[1726363101629,0.02685236,60286.0,60285.0,1.11981989]
[1726363101839,0.02685236,60286.0,60285.0,1.13381989]
[1726363102298,0.02685236,60286.0,60285.0,1.10581989]
[1726363102512,0.000823,60286.0,60285.0,1.11981989]
[1726363102728,0.000823,60286.0,60285.0,0.85441489]
[1726363103175,0.000823,60286.0,60285.0,0.24081156]
[1726363103412,0.000823,60286.0,60285.0,0.25481156]
[1726363103672,0.000823,60286.0,60285.0,0.29376392]
[1726363103896,0.000823,60286.0,60285.0,0.27976392]
[1726363104104,0.000823,60286.0,60285.0,0.29376392]
[1726363104320,0.000823,60286.0,60285.0,0.28176392]
[1726363104554,0.000823,60286.0,60285.0,0.29576392]
[1726363104765,0.000823,60286.0,60285.0,0.28176392]
[1726363105209,0.000823,60286.0,60285.0,0.29576392]
[1726363105435,0.000823,60286.0,60285.0,0.28176392]
[1726363105649,0.000823,60286.0,60285.0,0.27976392]
[1726363105900,0.02685568,60286.0,60285.0,0.29376392]
[1726363106559,0.02685568,60286.0,60285.0,0.42646592]
[1726363107277,0.02685568,60286.0,60285.0,0.98027592]
[1726363108783,0.02685568,60286.0,60285.0,0.98227592]
[1726363109624,0.02685568,60286.0,60285.0,0.71687092]
[1726363109835,0.02685568,60286.0,60285.0,0.45146592]
[1726363110050,0.02685568,60286.0,60285.0,0.71687092]
[1726363111968,0.02685568,60286.0,60285.0,0.70287092]
[1726363112454,0.02685568,60286.0,60285.0,0.69887092]
[1726363112882,0.02685568,60286.0,60285.0,0.68887092]
[1726363113327,0.02685568,60286.0,60285.0,0.69887092]
[1726363114269,0.02685568,60286.0,60285.0,0.70787092]
[1726363116971,0.02685568,60286.0,60285.0,0.97327592]
[1726363117655,0.02685568,60286.0,60285.0,1.23868092]
[1726363120206,0.02685568,60286.0,60285.0,1.42917725]
[1726363122511,0.000823,60286.0,60285.0,1.42917725]
[1726363125745,0.0268528,60286.0,60285.0,1.42917725]
[1726363130306,0.0268528,60286.0,60285.0,1.42717725]
[1726363131228,0.0268528,60286.0,60285.0,0.28121356]
[1726363131471,0.0268528,60286.0,60285.0,0.54661856]
[1726363132368,0.000823,60286.0,60285.0,0.54661856]
[1726363135701,0.02685382,60286.0,60285.0,0.54661856]
[1726363140788,0.02685382,60286.0,60285.0,0.06281156]
[1726363141006,0.02685382,60286.0,60285.0,0.32821656]
[1726363141231,0.02685382,60286.0,60285.0,1.30804089]
[1726363141684,0.02685382,60286.0,60285.0,1.3080863]
[1726363141907,0.02685382,60286.0,60285.0,1.20880762]
[1726363142137,0.02685382,60286.0,60285.0,1.29808646]
[1726363142367,0.02685382,60286.0,60285.0,1.28908646]
[1726363142608,0.02685382,60286.0,60285.0,1.45521262]
[1726363142827,0.02685382,60286.0,60285.0,1.55449146]
[1726363143203,0.02685382,60286.0,60285.0,1.56849146]
[1726363143422,0.02685382,60286.0,60285.0,1.46921262]
[1726363143675,0.02685382,60286.0,60285.0,1.57850177]
[1726363143893,0.02685382,60286.0,60285.0,1.6032542]
[1726363144120,0.02685382,60286.0,60285.0,1.5932542]
[1726363144368,0.02685382,60286.0,60285.0,1.48321262]
[1726363144595,0.02685382,60286.0,60285.0,1.55768031]
[1726363144811,0.02685382,60286.0,60285.0,1.55785936]
[1726363145252,0.02685382,60286.0,60285.0,0.92289471]
[1726363145471,0.02685382,60286.0,60285.0,1.20239944]
[1726363146550,0.02685382,60286.0,60285.0,1.39333329]
[1726363146784,0.02685382,60286.0,60285.0,1.202405]
[1726363147021,0.02685382,60286.0,60285.0,1.20238354]
[1726363147678,0.02685382,60286.0,60285.0,0.84842356]
[1726363148579,0.02685382,60286.0,60285.0,0.89807989]
[1726363148804,0.02685382,60286.0,60285.0,0.89808035]
[1726363149019,0.000823,60286.0,60285.0,0.89808035]
[1726363149686,0.000823,60286.0,60285.0,0.84842356]
[1726363149906,0.000823,60286.0,60285.0,0.92291098]
[1726363150357,0.000823,60286.0,60285.0,0.84842356]
[1726363150847,0.000823,60286.0,60285.0,0.92291098]
[1726363151329,0.000823,60286.0,60285.0,0.84842356]
[1726363152104,0.000823,60286.0,60285.0,1.2025066]
[1726363152313,0.000823,60286.0,60285.0,1.12801918]
[1726363152554,0.02685264,60286.0,60285.0,1.20251852]
[1726363152792,0.000823,60286.0,60285.0,1.20251852]
[1726363153492,0.000823,60286.0,60285.0,0.9229229]
[1726363153730,0.000823,60286.0,60285.0,0.84842356]
[1726363153985,0.000823,60286.0,60285.0,1.20266074]
[1726363154206,0.000823,60286.0,60285.0,1.1281614]
[1726363154454,0.000823,60286.0,60285.0,1.22747796]
[1726363155189,0.000823,60286.0,60285.0,1.20266526]
[1726363155467,0.0001,60299.0,60285.0,1.20266526]